Cogmind - Beta 15 @@@ ROGUE MODE // 2025.07.28 @ 00:10:31 Player: Nat Result: Destroyed by S-27 Virus with Autogun Performance ------------- Evolutions (4) 2000 Regions Visited (4) 800 Robots Destroyed (10) 50 Value Destroyed (383) 383 Prototype IDs (0) 0 Alien Tech Used (0) 0 Bonus (0) 0 TOTAL SCORE: 3233 Bonus ------- None Cogmind --------- Core Integrity 0/850 Matter 106/300 Energy 86/100 System Corruption 8% Temperature Cool (0) Movement Hovering (80) Location -6/Factory Parts ------- > --- POWER (2) -------- (None) > --- PROPULSION (4) --- Combat Airjet > --- UTILITY (5) ------ Small Storage Unit Advanced Sensor Array Improved Signal Interpreter > --- WEAPON (4) ------- (None) > --- INVENTORY (8) ---- Subdweller Optics Peak State ------------ > --- POWER ------------ Subdweller Power Source > --- PROPULSION ------- Aluminum Leg Aluminum Leg Aluminum Leg Aluminum Leg > --- UTILITY ---------- Improved Heat Sink Small Storage Unit Improved Signal Interpreter Makeshift ECM Suite Drone Bay > --- WEAPON ----------- Salvaging Laser Subdweller Machine Gun Heavy Rocket Launcher CPS Tube > --- INVENTORY -------- Subdweller Optics [Rating: 31] Favorites ----------- Power Subdweller Power Source Engine Subdweller Power Source Propulsion Aluminum Leg Leg Aluminum Leg Hover Unit Combat Airjet Utility Small Storage Unit Device Subdweller Optics Storage Small Storage Unit Processor Improved Signal Interpreter Weapon Subdweller Machine Gun Energy Gun Subdweller Laser Ballistic Gun Subdweller Machine Gun Launcher Heavy Rocket Launcher Special Weapon CPS Tube Build | -11 -10 -10 -8 -6 ------- Run | Yrd Mat Sub Scr Fac Slots Evolved 8 | . . . . 8 Power 1 | . . . . 1 Propulsion 2 | . . . . 2 Utility 3 | . . . . 3 Weapon 2 | . . . . 2 Parts Attached 29 | 6 5 5 3 10 Power 2 | 1 . 1 . . Engine 2 | 1 . 1 . . Core . | . . . . . Reactor . | . . . . . Propulsion 7 | 2 1 1 . 3 Treads . | . . . . . Leg 6 | 2 1 1 . 2 Wheel . | . . . . . Hover 1 | . . . . 1 Flight . | . . . . . Utility 12 | 1 3 1 2 5 Device 9 | . 3 1 . 5 Storage 1 | 1 . . . . Processor 2 | . . . 2 . Hackware . | . . . . . Protection . | . . . . . Artifact . | . . . . . Weapon 8 | 2 1 2 1 2 Energy Gun 5 | 2 1 1 . 1 Energy Cannon . | . . . . . Ballistic Gun 1 | . . 1 . . Ballistic Cannon . | . . . . . Launcher 1 | . . . 1 . Special Weapon 1 | . . . . 1 Impact Weapon . | . . . . . Slashing Weapon . | . . . . . Piercing Weapon . | . . . . . Special Melee Weapon . | . . . . . Unidentified Prototypes . | . . . . . Parts Lost 14 | . 1 . . 13 Power 1 | . . . . 1 Propulsion 4 | . . . . 4 Utility 5 | . 1 . . 4 Weapon 4 | . . . . 4 Highest Loss Streak 12 | . 1 . . 12 To Critical Strikes 1 | . . . . 1 Average Backups 6 | . 1 5 7 2 Power . | . . . . . Propulsion 1 | . 1 2 2 . Utility 2 | . . . 3 1 Weapon 1 | . . 1 1 . Tool/Special . | . . . . . Unused Backups 1 | . . . 1 . Power . | . . . . . Propulsion . | . . . . . Utility 1 | . . . 1 . Weapon . | . . . . . Tool/Special . | . . . . . Average Slot Usage (%) 95 | . 94 99 100 64 Engine 12 | . 14 14 14 4 Leg 26 | . 28 28 28 17 Device 7 | . 8 13 6 11 Storage 13 | . 14 14 14 6 Processor 6 | . . . 7 6 Energy Gun 6 | . 28 21 3 3 Ballistic Gun 11 | . . 6 14 4 Launcher 8 | . . . 10 4 Peak Build Rating 31 | 6 10 12 16 31 Average Rating 14 | 4 7 11 14 21 On Entrance 8 | . 6 10 12 15 Naked Turns . | . . . . . Heaviest Build 38 | 11 14 20 23 38 Greatest Support 40 | 20 20 20 20 40 Greatest Overweight (x) 6 | . . . 1 6 Average Overweight (x) . | . . . . . Largest Inventory Capacity 8 | 8 8 8 8 8 Average Capacity 7 | 7 8 8 8 8 Most Carried 8 | 2 3 8 8 8 Average Carried 6 | . 1 5 7 1 Final Capacity 8 | 8 8 8 8 8 Final Carried 8 | . 3 7 8 1 Class Distribution -------------------- 53% | Mutant 40% | Scavenger-Mutant 6% | Scavenger-Gunner Dominant Class ---------------- Mutant | -10/Materials Scavenger-Mutant | -10/Subcaves Mutant | -8/Scraptown Scavenger-Gunner | -6/Factory Resources | -11 -10 -10 -8 -6 ----------- Run | Yrd Mat Sub Scr Fac Matter Collected 420 | 243 67 50 30 30 Remotely 27 | . 27 . . . Salvage Created 280 | . 92 92 . 96 Parts 15 | . 3 9 . 3 Haulers Intercepted . | . . . . . Recyclers Shooed 2 | . . . . 2 Parts Field Recycled . | . . . . . Retrieved Matter . | . . . . . Parts Self-Destructed 17 | . . 17 . . Prevented . | . . . . . Kills | -11 -10 -10 -8 -6 ------- Run | Yrd Mat Sub Scr Fac Combat Hostiles Destroyed 9 | . 2 3 . 4 Guns 5 | . 2 3 . . AOE 4 | . . . . 4 Classes Destroyed 4 | . 1 2 . 1 Watcher 1 | . . . . 1 Swarmer 2 | . . 2 . . Grunt 6 | . 2 . . 4 Subdweller 1 | . . 1 . . Best Kill Streak 5 | . 2 2 . 5 Combat Bots Only 4 | . 2 2 . 4 Max Kills in Single Turn 2 | . 2 1 . 2 Gunslinging 1 | . 1 . . . Exploded 2 | . . . . 2 Melee . | . . . . . Uniques/NPCs Destroyed . | . . . . . Combat | -11 -10 -10 -8 -6 -------- Run | Yrd Mat Sub Scr Fac Hostile Shots Fired 226 | . 12 6 . 208 Missed 72 | . 5 2 . 65 Hits 154 | . 7 4 . 143 Projectile 154 | . 7 4 . 143 Critical Strikes 3 | . . . . 3 Damage Taken 1913 | . 96 26 . 1791 Core 850 | . . . . 850 Absorbed by Shields . | . . . . . Core Remaining (%) 100 | 100 . . 100 . Volleys Fired 34 | . 8 4 . 22 Largest 2 | . 2 2 . 1 Hottest 115 | . 90 115 . 39 Shots Fired 45 | . 15 8 . 22 Gun 34 | . 15 8 . 11 Cannon . | . . . . . Launcher 11 | . . . . 11 Special . | . . . . . Kinetic 11 | . . . . 11 Thermal 23 | . 15 8 . . Explosive 11 | . . . . 11 Electromagnetic . | . . . . . Robot Hit Streak 3 | . 3 3 . 3 Robot Miss Streak 9 | . 2 1 . 9 Penetration Max . | . . . . . Secondary Targets 2 | . 1 1 . . Max Gunslinging Chain 1 | . 1 1 . . Shots Hit Robots 22 | . 9 5 . 8 Core Hits 32 | . 5 4 . 23 Critical Kills . | . . . . . Critical Parts Destroyed . | . . . . . Critical Strikes 1 | . 1 . . . Burn 1 | . 1 . . . Melee Attacks . | . . . . . Impact . | . . . . . Slashing . | . . . . . Piercing . | . . . . . Sneak Attacks . | . . . . . Combat Hostiles . | . . . . . Follow-up Attacks . | . . . . . Damage Inflicted 1210 | . 118 66 . 1026 Guns 217 | . 118 66 . 33 Cannons . | . . . . . Explosions 987 | . . . . 987 Melee . | . . . . . Ramming 6 | . . . . 6 Kinetic 33 | . . . . 33 Thermal 184 | . 118 66 . . Explosive 987 | . . . . 987 Electromagnetic . | . . . . . Impact . | . . . . . Slashing . | . . . . . Piercing . | . . . . . Highest Corruption 8 | . . . . 8 Average Corruption 7 | . . . . 7 Corruption Purged . | . . . . . Corruption Blocked . | . . . . . Effects 1 | . . . . 1 Matter Fused 1 | . . . . 1 Overload Shots . | . . . . . Overflow Damage 26 | . . . . 26 Projectiles . | . . . . . Explosions 26 | . . . . 26 Melee . | . . . . . Knockbacks . | . . . . . Impact . | . . . . . Kinetic . | . . . . . Secondary . | . . . . . Self-Inflicted Damage 3 | . . . . 3 Shots . | . . . . . Rammed 1 | . . . . 1 Targets Rammed 1 | . . . . 1 Kicked . | . . . . . Crushed . | . . . . . Highest Temperature 209 | . 209 . . 13 Average Temperature 98 | . 101 . . 13 Received Heat Transfer 345 | . 57 . . 288 Siege Activations . | . . . . . Martial Activations . | . . . . . Shielding Activations . | . . . . . Robots Disrupted . | . . . . . Combat Hostiles . | . . . . . Robots Corrupted . | . . . . . Combat Hostiles . | . . . . . Parts Fried . | . . . . . Impact Corruptions . | . . . . . Robots Melted . | . . . . . Combat Hostiles . | . . . . . Parts Melted 3 | . 2 1 . . Heat Transferred 557 | . 372 185 . . Parts Sabotaged . | . . . . . Parts Stolen . | . . . . . Parts Stripped . | . . . . . Power Chain Reactions . | . . . . . Alert | -11 -10 -10 -8 -6 ------- Run | Yrd Mat Sub Scr Fac Maximum Alert Level . | . . . . . Low Security (%) 100 | 100 100 . . 100 Level 1 . | . . . . . Level 2 . | . . . . . Level 3 . | . . . . . Level 4 . | . . . . . Level 5 . | . . . . . High Security . | . . . . . Max Security . | . . . . . Peak Influence 90 | . 50 . . 90 Initial . | . . . . . Average 12 | . 13 . . 13 Influence Increases 262 | . 62 40 . 160 Destroy 0b10 Robot/C 160 | . 40 40 . 80 Destroy 0b10 Robot/NC 5 | . . . . 5 Destroy Leader 22 | . 10 . . 12 Successful Hack 12 | . 12 . . . Destroy Structure 18 | . . . . 18 Lose Combat Pursuer 45 | . . . . 45 Influence Decreases 232 | . 62 40 . 130 Time Decay 150 | . 62 40 . 48 Lost Part 82 | . . . . 82 Squads Dispatched 2 | . . . . 2 Investigation 1 | . . . . 1 Extermination . | . . . . . Reinforcement 1 | . . . . 1 Assault . | . . . . . Garrison . | . . . . . Intercept . | . . . . . Searches Triggered . | . . . . . Construction Impeded 1 | . . . . 1 Haulers Reinforced . | . . . . . Active Scanning Responses . | . . . . . Cargo Convoy Interrupts . | . . . . . Stealth | -11 -10 -10 -8 -6 --------- Run | Yrd Mat Sub Scr Fac Distress Signals . | . . . . . Communications Jammed . | . . . . . Distress Signals . | . . . . . Times Spotted 22 | . 4 4 . 14 Peak Tracking Total 6 | . 2 2 . 6 Tactical Retreats 2 | . . . . 2 Traps | -11 -10 -10 -8 -6 ------- Run | Yrd Mat Sub Scr Fac Traps Triggered 2 | . . . . 2 Indirectly . | . . . . . Trap Hack Attempts . | . . . . . Triggered . | . . . . . Disarmed . | . . . . . Reprogrammed . | . . . . . Reused . | . . . . . Traps Extracted . | . . . . . Installed . | . . . . . Triggered . | . . . . . Machines | -11 -10 -10 -8 -6 ---------- Run | Yrd Mat Sub Scr Fac Machines Disabled . | . . . . . Max in Single Turn . | . . . . . Machines Repaired . | . . . . . Machines Dismantled . | . . . . . Machines Sabotaged . | . . . . . Overloaded Fab Kills . | . . . . . Hacking | -11 -10 -10 -8 -6 --------- Run | Yrd Mat Sub Scr Fac Machines Accessed 5 | . 1 . 3 1 Terminals 2 | . 1 . . 1 Fabricators . | . . . . . Repair Stations . | . . . . . Recycling Units . | . . . . . Scanalyzers . | . . . . . Garrison Access . | . . . . . Total Hacks 30 | . 1 . 27 2 Successful 28 | . 1 . 27 . Failed 2 | . . . . 2 Catastrophic 1 | . . . . 1 Database Lockouts . | . . . . . Manual . | . . . . . Terminals 3 | . 1 . . 2 Fabricators . | . . . . . Repair Stations . | . . . . . Recycling Units . | . . . . . Scanalyzers . | . . . . . Garrison Access . | . . . . . Terminal Hacks 28 | . 1 . 27 . Record 28 | . 1 . 27 . Fabricator Hacks . | . . . . . Repair Station Hacks . | . . . . . Recycling Unit Hacks . | . . . . . Scanalyzer . | . . . . . Garrison Access Hacks . | . . . . . Unauthorized Hacks . | . . . . . Terminals . | . . . . . Fabricators . | . . . . . Repair Stations . | . . . . . Recycling Units . | . . . . . Scanalyzers . | . . . . . Garrison Access . | . . . . . Data Cores Recovered . | . . . . . Used . | . . . . . Hacking Detections 2 | . 1 . . 1 Full Trace Events 1 | . . . . 1 Feedback Events . | . . . . . Feedback Blocked . | . . . . . Robot Schematics Acquired . | . . . . . Robots Built . | . . . . . Authchips . | . . . . . Time . | . . . . . Total Robot Build Rating . | . . . . . Part Schematics Acquired . | . . . . . Parts Built . | . . . . . Authchips . | . . . . . Time . | . . . . . Total Part Build Rating . | . . . . . Parts Repaired . | . . . . . Time . | . . . . . Parts Recycled . | . . . . . Recycled Matter . | . . . . . Retrieved Matter . | . . . . . Retrieved Components . | . . . . . Parts Scanalyzed . | . . . . . Part Schematics Acquired . | . . . . . Parts Damaged . | . . . . . Bothacking | -11 -10 -10 -8 -6 ------------ Run | Yrd Mat Sub Scr Fac Used RIF Installer . | . . . . . Robots Hacked . | . . . . . Non-combat . | . . . . . Combat . | . . . . . Robot Hacks Applied . | . . . . . Relay Couplers Released . | . . . . . Fabnet Peak Effective % . | . . . . . Robots Rewired . | . . . . . Allies Hacked . | . . . . . Hacks Repelled . | . . . . . Allies | -11 -10 -10 -8 -6 -------- Run | Yrd Mat Sub Scr Fac Total Allies . | . . . . . Largest Group . | . . . . . Highest-Rated Group . | . . . . . Highest-Rated Ally . | . . . . . Total Orders . | . . . . . Ally Attacks . | . . . . . Total Damage . | . . . . . Kills . | . . . . . Allies Corrupted . | . . . . . Allies Melted . | . . . . . Intel | -11 -10 -10 -8 -6 ------- Run | Yrd Mat Sub Scr Fac Active Infowar (turns) 621 | . . 125 471 25 Optics 596 | . . 125 471 . Sensors 24 | . . . . 24 ECM 1 | . . . . 1 Robot Analysis Total . | . . . . . Derelict Logs Recovered 4 | . . 2 2 . Drone Launches 2 | . . . . 2 Drone Recoveries 1 | . . . . 1 Exploration | -11 -10 -10 -8 -6 ------------- Run | Yrd Mat Sub Scr Fac Turns Passed 2831 | 64 173 268 2009 317 Spaces Moved 1707 | 49 110 201 1179 168 Core 84 | 8 . . . 76 Treads . | . . . . . Legs 1616 | 41 110 201 1179 85 Wheels . | . . . . . Hover 7 | . . . . 7 Flight . | . . . . . Fastest Speed 50 | 50 120 120 120 80 Average Speed 153 | 108 120 120 169 116 Slowest Speed 350 | 120 120 120 190 350 Overloaded Moves . | . . . . . Propulsion Burnouts . | . . . . . Robots Hopped . | . . . . . Potential Cave-ins . | . . . . . Cave-ins Triggered . | . . . . . Exploration Rate (%) 21 | 4 18 18 60 8 Regions Visited 4 Branch Regions 2 Pre-discovered Areas 1 | . . 1 . . Known Exits Taken 1 | . . . 1 . Unknown Exits Taken 3 | 1 1 1 . . Scrap Searched 6 | . . 1 5 . Spaces Dug . | . . . . . Terrain Destroyed 24 | . . . . 24 Melee . | . . . . . Projectile . | . . . . . AOE 24 | . . . . 24 Terrain Rammed . | . . . . . Walls Destroyed . | . . . . . Machines Disabled . | . . . . . Actions | -11 -10 -10 -8 -6 --------- Run | Yrd Mat Sub Scr Fac Total 1876 | 60 135 221 1193 267 Wait 65 | . 4 . . 61 Move 1703 | 48 109 200 1178 168 Hop . | . . . . . Pick Up 28 | 6 7 7 5 3 Fast Attach 1 | . . . 1 . Attach 21 | 6 2 2 . 11 Detach 3 | . . 2 . 1 Swap 8 | . 3 3 2 . Drop 10 | . 2 3 5 . Fire 34 | . 8 4 . 22 Melee . | . . . . . Ram 1 | . . . . 1 Kick . | . . . . . Crush . | . . . . . Escape Stasis . | . . . . . Rewire 2 | . . . 2 . Trap . | . . . . . Miscellaneous . | . . . . . Route ------- -11/Scrapyard -10/Materials -10/Subcaves (discovered 3 exits: [*Mat] / [*Rec] / *Scr) -8/Scraptown -6/Factory History --------- Turn | Location | Event 40 | -11/Scrapyard | Discovered new exit (range 15) 65 | -11/Scrapyard | Entered Materials 66 | -10/Materials | Met a group of wandering Federalists 213 | -10/Materials | Discovered new exit (range 9) 238 | -10/Materials | Entered Subcaves 239 | -10/Subcaves | Continued accompanying wandering Federalists (4) 255 | -10/Subcaves | Ambushed by Subdwellers from Twisted Machinery 259 | -10/Subcaves | Discovered new exit (range 14) 275 | -10/Subcaves | Learned location of Zion (-7) 294 | -10/Subcaves | Learned 4 Materials zone layouts 479 | -10/Subcaves | Discovered new exit (range 11) 486 | -10/Subcaves | Wandering Federalist uncovered a shortcut to Scraptown 506 | -10/Subcaves | Entered Scraptown 569 | -8/Scraptown | Build established: Scavenger-Mutant 802 | -8/Scraptown | Visited Assassins FH 840 | -8/Scraptown | Visited UFD Registry 850 | -8/Scraptown | Visited Shadow of the Wyrm 874 | -8/Scraptown | Visited Cyclists 910 | -8/Scraptown | Visited Junk Repository 1045 | -8/Scraptown | Heard Great Nut preacher, LISTEN AND RECITE! 1176 | -8/Scraptown | Discovered new exit (range 5) 1323 | -8/Scraptown | Scanned Subdweller tech in exchange for log data 1328 | -8/Scraptown | Learned location of 2 exits from Upper Caves 1330 | -8/Scraptown | Learned Factory interactive machine intel 1387 | -8/Scraptown | Visited Awakened 1459 | -8/Scraptown | Visited Cave Peace 1681 | -8/Scraptown | Build established: Mutant 2057 | -8/Scraptown | Visited Scrapoid Research Area 2502 | -8/Scraptown | Identified exit to Factory 2515 | -8/Scraptown | Entered Factory 2515 | -6/Factory | Evolved 8 slots: Power x1, Propulsion x2, Utility x3, Weapon x2 2516 | -6/Factory | Loaded intel: 54 interactive machine locations 2762 | -6/Factory | Core integrity fell below 50% 2782 | -6/Factory | Core integrity fell below 20% 2789 | -6/Factory | Lost 12 parts (1p4n3u4w) 2832 | -6/Factory | Destroyed by S-27 Virus with Autogun Last Messages --------------- Acquired 11 matter. K-01 Serf collects debris. U-05 Engineer lays Concrete. Acquired 12 matter. U-05 Engineer lays Concrete. Slammed into R-10 Processor. K-01 Serf collects debris. U-05 Engineer lays Concrete. K-01 Serf collects debris. Triggered EM Surge Trap. The floor emits a surge of raw power. System corrupted (+3). Triggered EM Surge Trap. The floor emits a surge of raw power. System corrupted (+5). Acquired Adv. Sensor Array. ALERT: Security rotation in progress. [Achievement: I Spy] Acquired Cmb. Airjet. System corrupted: Matter fused (-8). Map ----- +----------------------------------------------------+ | ????????????????????# | | ????????????????????# ###################### | | ????????????????????# #?????????"""""""""""? | | ????????????????????# #??????????""""T""""?? | | ????????????????????# #????????????????????? | | ????????????????????# #?????????? ?????????? | | ????????????????????# #?????????? ?????? ?? | | ????????????????????# #?????????" ????? ?? | | ????????????????????# #?????????" ????== ?? | | ????????????????????# #?????????" ??? ==???? | | ????????????????????# R#????????? ?? =????? | | ????????????????????# k###########/##+####??? | | ????????????????????# #??? | | ????????????????????# #??? | | ????????????????????# R #??? | | ????????????????????# +??? | | ????????????????????# #??? | | ????????????????????# #??? | | ????????????????????# Y #??? | | ????????????????????################### #??? | | ????????????????????????# ## ##?? | | ????????????????????????# # #?? | | ????????????????????????# #g ### | | ????????????????????""??# """ """ # | | ????????????????????""??# """ """ # "" | | ????????????????????""??#@ """ """ g/ T | | ?????????????????????G??# s # | | ????????????????????""??# """ """ # | | ????????????????????""??# s """ """ # ### | | ????????????????????""??# s""" """ # #?? | | ????????????????????????# ###########?? | | ????????????????????????# #???????????? | | ????????????????????????##############???????????? | | ?????????????????????????????????????????????????? | | ?????????????????????????????????????????????????? | | ?????????????????????????????????????????????????? | | ?????????????????????????????????????????????????? | | ?????????????????????????????????????????????????? | | ?????????????????????????????????????????????????? | | ?????????????????????????????????????????????????? | | ?????????????????????????????????????????????????? | | ?????????????????????????????????????????????????? | | ?????????????????????????????????????????????????? | | ?????????????????????????????????????????????????? | | ?????????????????????????????????????????????????? | | ?????????????????????????????????????????????????? | | ?????????????????????????????????????????????????? | | ?????????????????????????????????????????????????? | | ?????????????????????????????????????????????????? | | ?????????????????????????????????????????????????? | +----------------------------------------------------+ Best States ------------- Heat Dissipation 51 Energy Generation 15 Energy Capacity 200 Matter Stores 300 Matter Capacity 300 Sight Range 21 Robot Scan Range 16 Terrain Scan Density 10 Corruption Block 4 Evasion (%) 55 Energy Filtering 30 Item Schematics ----------------- None Robot Schematics ------------------ None Fabricated ------------ Nothing Repaired ---------- Nothing Alien Tech Used ----------------- None Achievements -------------- I Spy Librarian Made in Tau Ceti IV Challenges ------------ None Game ------ Seed MappingPhysicsMatterbank Manual? 0 Play Time 00:43:25 Cumulative 3.0 hours Start 2025.07.27 @ 22:24:42 End 2025.07.28 @ 00:10:31 Sessions 1 Manual Loads 0 Difficulty Rogue Special Mode None Game No. 7 Rogue 7 Adventurer 0 Explorer 0 Win Type - Total 0 Types 0/0/0/0/0/0/0/0/0/0 Lore% 5 Gallery% 5 Achievement% 6 Wizard Run 0 Options --------- Layout 1 ASCII 0 Keyboard 0 Movement Mouse Keybinds 0 Fullscreen 1 Font 24/Smallcaps Map View 50x40 Zoom Use 0% Tactical HUD 0 Map Filters NONE Filters NONE Steam 1 RUN: e9170774-6157-440b-a776-47e1fa5ee33c